[Event "EYCC O18-ch 2024"]
[Site "Prague"]
[Date "2024.08.22"]
[Round "1.16"]
[White "Omarsson, Adam"]
[Black "Dehtiarov, Roman"]
[Result "0-1"]
[ECO "E45"]
[WhiteElo "1970"]
[BlackElo "2308"]
[Annotator "RC"]
[PlyCount "116"]
[EventDate "2024.08.19"]
[EventType "swiss"]
[EventCountry "CZE"]
[SourceTitle "playchess.com"]
[Source "ChessBase"]
[SourceQuality "1"]
[TimeControl "5400+30"]

1. d4 {[%emt 0:00:03]} Nf6 {[%emt 0:00:08]} 2. c4 {[%emt 0:00:05]} e6 {[%emt 0:00:08]} 3. Nc3 {[%emt 0:00:07]} Bb4 {[%emt 0:00:08]} 4. e3 {[%emt 0:00:05]} b6 {[%emt 0:00:24]} 5. Nge2 {[%emt 0:00:13]} Ba6 {[%emt 0:00:10]} 6. a3 {[%emt 0:00:10]} Bxc3+ {[%emt 0:00:06]} 7. Nxc3 {[%emt 0:00:06]} d5 {[%emt 0:00:08]} 8. b3 {[%emt 0:00:08]} O-O {[%emt 0:00:38]} 9. Be2 {[%emt 0:03:00]} c5 {[%emt 0:04:07]} 10. dxc5 {[%emt 0:13:40]} dxc4 {[%emt 0:02:03]} 11. Qxd8 {[%emt 0:05:06]} Rxd8 {[%emt 0:00:14]} 12. bxc4 {[%emt 0:00:33]} Nbd7 {[%emt 0:03:08]} 13. cxb6 {[%emt 0:06:52]} axb6 {[%emt 0:00:09]} 14. Nb5 {[%emt 0:03:28]} Rac8 {[%emt 0:01:23]} 15. Bb2 {[%emt 0:01:31]} Nc5 {[%emt 0:02:26]} 16. Bxf6 {[%emt 0:27:01]} gxf6 {[%emt 0:01:06]} 17. Na7 {[%emt 0:14:25]} Rc7 {[%emt 0:00:49]} 18. Nb5 {[%emt 0:00:09]} Bxb5 {[%emt 0:03:29]} 19. cxb5 {[%emt 0:00:07]} Nb3 {[%emt 0:00:56]} 20. Rd1 {[%emt 0:02:08]} Rxd1+ {[%emt 0:02:13]} 21. Bxd1 {[%emt 0:00:07]} Rc1 {[%emt 0:00:11]} 22. Ke2 {[%emt 0:05:37]} Ra1 {[%emt 0:00:29]} 23. Re1 {[%emt 0:10:39]} Rxa3 {[%emt 0:01:35]} 24. Bc2 {[%emt 0:00:38]} Nc5 {[%emt 0:03:56]} 25. f3 {[%emt 0:01:11]} f5 {[%emt 0:01:16]} 26. Rd1 {[%emt 0:00:38]} Ra5 {[%emt 0:00:20]} 27. Rb1 {[%emt 0:00:32]} Kg7 {[%emt 0:00:26]} 28. Kd2 {[%emt 0:00:15]} Kf6 {[%emt 0:02:00]} 29. Rb4 {[%emt 0:01:18]} Ra1 {[%emt 0:01:42]} 30. Bb1 {[%emt 0:02:22]} Ke5 {[%emt 0:01:43]} 31. Kc2 {[%emt 0:01:48]} Ra3 {[%emt 0:00:22]} 32. Kd2 {[%emt 0:00:25]} Ra4 {[%emt 0:04:06]} 33. Kc3 {[%emt 0:01:52]} Rxb4 {[%emt 0:00:47]} 34. Kxb4 {[%emt 0:00:01]} h5 {[%emt 0:00:11]} 35. g3 {[%emt 0:00:20]} h4 {[%emt 0:09:34]} 36. f4+ {[%emt 0:00:34]} Kf6 {[%emt 0:00:06]} 37. Kc4 {[%emt 0:00:26]} hxg3 {[%emt 0:14:55]} 38. hxg3 {[%emt 0:00:07]} Ke7 {[%emt 0:00:11]} 39. Bc2 {[%emt 0:00:15]} Kd6 {[%emt 0:00:36]} 40. Kd4 {[%emt 0:00:53]} f6 {[%emt 0:04:24]} 41. Kc4 {[%emt 0:00:17]} Nb7 {[%emt 0:01:31]} 42. e4 {[%emt 0:01:14]} fxe4 {[%emt 0:00:05]} 43. Bxe4 {[%emt 0:00:06]} Nc5 {[%emt 0:00:01]} 44. Bf3 {[%emt 0:00:21]} e5 {[%emt 0:00:05]} 45. Bd5 {[%emt 0:00:52]} f5 {[%emt 0:02:47]} 46. Bc6 {[%emt 0:01:03]} exf4 {[%emt 0:01:29]} 47. gxf4 {[%emt 0:00:13]} Ne6 {[%emt 0:00:02]} 48. Kd3 {[%emt 0:00:48]} Nxf4+ {[%emt 0:00:07]} 49. Kc4 {[%emt 0:00:08]} Ne6 {[%emt 0:00:03]} 50. Bb7 {[%emt 0:00:34]} Ke5 {[%emt 0:00:04]} 51. Bc6 {[%emt 0:00:17]} Nd4 {[%emt 0:00:19]} 52. Be8 {[%emt 0:00:39]} Ne6 {[%emt 0:01:39]} 53. Kd3 {[%emt 0:00:53]} Kf4 {[%emt 0:04:03]} 54. Bc6 {[%emt 0:00:37]} Kg3 {[%emt 0:00:22]} 55. Ke2 {[%emt 0:00:23]} f4 {[%emt 0:00:06]} 56. Kf1 {[%emt 0:00:27]} f3 {[%emt 0:00:41]} 57. Bd5 {[%emt 0:00:33]} Nd4 {[%emt 0:00:05]} 58. Bc6 {[%emt 0:00:08]} Nf5 {[%emt 0:00:05]} 0-1

[Event "EYCC O18-ch 2024"]
[Site "Prague"]
[Date "2024.08.22"]
[Round "1.17"]
[White "Belkaid, Sohan"]
[Black "Maldonado Mena, German"]
[Result "1-0"]
[ECO "B36"]
[WhiteElo "2384"]
[BlackElo "2073"]
[Annotator "RC"]
[PlyCount "73"]
[EventDate "2024.08.19"]
[EventType "swiss"]
[EventCountry "CZE"]
[SourceTitle "playchess.com"]
[Source "ChessBase"]
[SourceQuality "1"]
[TimeControl "5400+30"]

1. e4 {[%emt 0:00:12]} c5 {[%emt 0:00:35]} 2. Nf3 {[%emt 0:00:15]} Nc6 {[%emt 0:00:45]} 3. d4 {[%emt 0:00:50]} cxd4 {[%emt 0:00:27]} 4. Nxd4 {[%emt 0:00:10]} g6 {[%emt 0:00:22]} 5. c4 {[%emt 0:05:36]} Nf6 {[%emt 0:00:29]} 6. Nc3 {[%emt 0:00:15]} d6 {[%emt 0:00:07]} 7. Be2 {[%emt 0:01:15]} Nxd4 {[%emt 0:00:38]} 8. Qxd4 {[%emt 0:00:07]} Bg7 {[%emt 0:00:09]} 9. Bd2 {[%emt 0:01:33]} O-O {[%emt 0:01:49]} 10. Qe3 {[%emt 0:00:16]} Qb6 {[%emt 0:09:31]} 11. Qxb6 {[%emt 0:28:23]} axb6 {[%emt 0:00:11]} 12. O-O {[%emt 0:03:12]} Be6 {[%emt 0:01:48]} 13. Rfc1 {[%emt 0:07:59]} Rfc8 {[%emt 0:02:20]} 14. b3 {[%emt 0:03:32]} Nd7 {[%emt 0:04:19]} 15. a4 {[%emt 0:13:19]} Nc5 {[%emt 0:06:28]} 16. Rab1 {[%emt 0:00:48]} Bxc3 {[%emt 0:22:39]} 17. Bxc3 {[%emt 0:00:12]} Nxe4 {[%emt 0:00:07]} 18. Bd4 {[%emt 0:00:50]} Nc5 {[%emt 0:00:20]} 19. h4 {[%emt 0:04:17]} Bf5 {[%emt 0:05:49]} 20. Rb2 {[%emt 0:00:38]} e5 {[%emt 0:00:15]} 21. Be3 {[%emt 0:01:59]} Bd7 {[%emt 0:01:31]} 22. Rd1 {[%emt 0:01:47]} Nxb3 {[%emt 0:04:28]} 23. Rxb3 {[%emt 0:11:48]} Bxa4 {[%emt 0:00:08]} 24. Rbb1 {[%emt 0:00:19]} Bxd1 {[%emt 0:00:10]} 25. Rxd1 {[%emt 0:00:09]} Rc6 {[%emt 0:02:09]} 26. Bf3 {[%emt 0:02:56]} Rxc4 {[%emt 0:00:09]} 27. Rxd6 {[%emt 0:00:25]} Rxh4 {[%emt 0:01:00]} 28. g3 {[%emt 0:00:20]} Ra1+ {[%emt 0:00:22]} 29. Kg2 {[%emt 0:00:08]} Rhh1 {[%emt 0:05:11]} 30. Bd5 {[%emt 0:02:27]} Rad1 {[%emt 0:06:22]} 31. Rd8+ {[%emt 0:02:00]} Kg7 {[%emt 0:00:07]} 32. Rd7 {[%emt 0:00:24]} Kf8 {[%emt 0:03:18]} 33. Rxf7+ {[%emt 0:01:33]} Ke8 {[%emt 0:00:06]} 34. Rxb7 {[%emt 0:00:24]} Rhg1+ {[%emt 0:01:43]} 35. Kh2 {[%emt 0:00:08]} Rb1 {[%emt 0:01:32]} 36. Bc6+ {[%emt 0:01:08]} Kd8 {[%emt 0:00:11]} 37. Be4 {[%emt 0:00:12]} 1-0

[Event "EYCC O18-ch 2024"]
[Site "Prague"]
[Date "2024.08.22"]
[Round "1.18"]
[White "Anacak, Hasan Gunes"]
[Black "Elmi, Saad Abobaker"]
[Result "0-1"]
[ECO "B51"]
[WhiteElo "2071"]
[BlackElo "2383"]
[Annotator "RC"]
[PlyCount "78"]
[EventDate "2024.08.19"]
[EventType "swiss"]
[EventCountry "CZE"]
[SourceTitle "playchess.com"]
[Source "ChessBase"]
[SourceQuality "1"]
[TimeControl "5400+30"]

1. e4 {[%emt 0:00:01]} c5 {[%emt 0:00:08]} 2. Nf3 {[%emt 0:00:08]} d6 {[%emt 0:00:08]} 3. Bb5+ {[%emt 0:00:11]} Nc6 {[%emt 0:01:44]} 4. O-O {[%emt 0:02:08]} Bd7 {[%emt 0:00:07]} 5. Re1 {[%emt 0:02:05]} a6 {[%emt 0:00:19]} 6. Bf1 {[%emt 0:13:13]} Nf6 {[%emt 0:02:29]} 7. c3 {[%emt 0:01:14]} Bg4 {[%emt 0:00:39]} 8. h3 {[%emt 0:01:49]} Bxf3 {[%emt 0:01:25]} 9. Qxf3 {[%emt 0:00:22]} g6 {[%emt 0:00:38]} 10. d3 {[%emt 0:04:45]} Bg7 {[%emt 0:00:32]} 11. g4 {[%emt 0:04:05]} O-O {[%emt 0:12:52]} 12. Bg2 {[%emt 0:07:51]} Nd7 {[%emt 0:02:50]} 13. Qg3 {[%emt 0:01:15]} Rc8 {[%emt 0:04:31]} 14. Qh4 {[%emt 0:12:56]} b5 {[%emt 0:04:39]} 15. Bh6 {[%emt 0:02:32]} b4 {[%emt 0:00:20]} 16. Bxg7 {[%emt 0:01:49]} Kxg7 {[%emt 0:00:03]} 17. Nd2 {[%emt 0:01:38]} Nde5 {[%emt 0:10:46]} 18. Qg3 {[%emt 0:03:22]} g5 {[%emt 0:00:56]} 19. h4 {[%emt 0:12:04]} h6 {[%emt 0:06:05]} 20. h5 {[%emt 0:02:37]} Qd7 {[%emt 0:03:14]} 21. Bh3 {[%emt 0:01:09]} Rb8 {[%emt 0:01:18]} 22. Rf1 {[%emt 0:03:26]} bxc3 {[%emt 0:02:50]} 23. bxc3 {[%emt 0:01:23]} Rb2 {[%emt 0:00:07]} 24. Rad1 {[%emt 0:02:59]} Qa7 {[%emt 0:06:35]} 25. Kh1 {[%emt 0:07:14]} Nd8 {[%emt 0:01:09]} 26. f4 gxf4 {[%emt 0:00:07]} 27. Rxf4 {[%emt 0:03:42]} Ne6 {[%emt 0:00:22]} 28. Rf5 {[%emt 0:01:12]} Ng5 {[%emt 0:00:25]} 29. Qe3 {[%emt 0:01:04]} f6 {[%emt 0:02:34]} 30. Nf1 {[%emt 0:02:42]} Rxa2 {[%emt 0:01:33]} 31. d4 {[%emt 0:00:40]} cxd4 {[%emt 0:00:42]} 32. cxd4 {[%emt 0:00:07]} Nef7 {[%emt 0:03:35]} 33. Qb3 {[%emt 0:04:13]} Re2 {[%emt 0:00:39]} 34. Ng3 {[%emt 0:00:47]} Rb8 {[%emt 0:00:21]} 35. Qa4 {[%emt 0:00:27]} Reb2 {[%emt 0:00:31]} 36. Bg2 {[%emt 0:00:38]} e6 {[%emt 0:05:19]} 37. Ra5 {[%emt 0:00:36]} R8b4 {[%emt 0:00:38]} 38. Qa1 {[%emt 0:00:34]} Qb8 {[%emt 0:01:29]} 39. Qc1 {[%emt 0:00:28]} Rb1 {[%emt 0:00:15]} 0-1

[Event "EYCC O18-ch 2024"]
[Site "Prague"]
[Date "2024.08.23"]
[Round "2.1"]
[White "Dehtiarov, Roman"]
[Black "Sokolovsky, Yahli"]
[Result "0-1"]
[ECO "B92"]
[WhiteElo "2308"]
[BlackElo "2522"]
[Annotator "TA"]
[PlyCount "142"]
[EventDate "2024.08.19"]
[EventType "swiss"]
[EventCountry "CZE"]
[SourceTitle "playchess.com"]
[Source "ChessBase"]
[SourceQuality "1"]
[TimeControl "5400+30"]

{[%evp 44,142,85,80,87,80,80,74,68,69,91,83,83,86,84,31,31,28,33,21,14,18,39,0,0,0,0,0,0,0,0,0,0,0,0,0,-4,-5,0,-4,-8,-7,-7,-10,0,0,0,-10,-8,-7,0,0,0,0,0,-20,-11,-17,-11,-10,-8,-169,-158,-164,-154,-154,-162,-396,-390,-250,-265,-407,-377,-475,-471,-490,-443,-478,-461,-520,-516,-499,-469,-573,-631,-635,-110,-650,-659,-756,-599,-1039,-947,-29980,-29980,-29968,-29963,-29948,-29948,-4952,-1729]} 1. e4 {[%emt 0:00:03]} c5 {[%emt 0:00:06]} 2. Nf3 {[%emt 0:00:07]} d6 {[%emt 0:00:05]} 3. d4 {[%emt 0:00:10]} cxd4 {[%emt 0:00:10]} 4. Nxd4 {[%emt 0:00:02]} Nf6 {[%emt 0:00:21]} 5. Nc3 {[%emt 0:00:10]} a6 {[%emt 0:00:23]} 6. Be2 {[%emt 0:01:16]} e5 {[%emt 0:00:16]} 7. Nb3 {[%emt 0:00:08]} Be7 {[%emt 0:00:05]} 8. Be3 {[%emt 0:00:12]} Be6 {[%emt 0:00:05]} 9. O-O {[%emt 0:00:11]} O-O {[%emt 0:00:25]} 10. Qd2 {[%emt 0:00:29]} Nbd7 {[%emt 0:00:06]} 11. a4 {[%emt 0:00:13]} Rc8 {[%emt 0:00:38] 11...Rc8 was played by the boomers.} 12. a5 {[%emt 0:01:50]} Qc7 {[%emt 0:00:05]} 13. Rfd1 {[%emt 0:01:08]} h6 {[%emt 0:00:27] B92: Sicilian Najdorf: 6 Be2.} 14. Nc1 {[%emt 0:02:24]} Rfe8 {[%emt 0:03:58]} 15. Nd3 {[%emt 0:10:22]} Ng4 $146 {[%emt 0:09:01]} ({Predecessor:} 15... b6 16. Nb4 bxa5 17. Nbd5 Bxd5 18. exd5 Rb8 19. Ra2 Nc5 20. Rda1 Bd8 21. b3 Qc8 {½-½ Mostowik,D (2299)-Ilonen,I (2324) NED 50 YEARS-C email 2016}) 16. Bxg4 {[%emt 0:04:32]} Bxg4 {[%emt 0:00:03]} 17. f3 {[%emt 0:00:10]} Be6 {[%emt 0:00:05]} 18. Nb4 {[%emt 0:00:18]} Bf8 {[%emt 0:09:00]} 19. Nbd5 {[%emt 0:10:11]} Qc6 {[%emt 0:14:18]} 20. Ra4 {[%emt 0:13:44]} Bxd5 {[%emt 0:15:30]} 21. Qxd5 {[%emt 0:01:02]} Qxd5 {[%emt 0:00:25]} 22. Rxd5 {[%emt 0:03:50]} Rc7 {[%emt 0:00:08]} 23. Rd2 {[%emt 0:03:14]} Rec8 {[%emt 0:02:06]} 24. Kf1 {[%emt 0:02:57]} Nf6 {[%emt 0:09:11]} 25. Ke2 {[%emt 0:02:42]} Be7 {[%emt 0:00:32]} 26. g4 {[%emt 0:02:28]} Rc4 {[%emt 0:12:55]} 27. Rxc4 {[%emt 0:09:58]} Rxc4 {[%emt 0:00:02]} 28. Kd3 {[%emt 0:01:15]} Rc8 {[%emt 0:03:57]} 29. g5 {[%emt 0:01:52]} (29. h4 $16) 29... hxg5 $14 {[%emt 0:01:36]} 30. Bxg5 {[%emt 0:00:30]} g6 {[%emt 0:00:34]} 31. Bxf6 {[%emt 0:03:50]} Bxf6 {[%emt 0:00:01]} 32. Nd5 {[%emt 0:01:10]} Kg7 {[%emt 0:00:12]} 33. b4 {[%emt 0:08:27]} Rh8 {[%emt 0:00:24]} 34. Rg2 {[%emt 0:00:29]} Rh3 {[%emt 0:02:32]} 35. Ke2 {[%emt 0:00:35]} ({Much worse is} 35. Rg3 Rxh2 36. c3 Rh1 $17) 35... Bd8 {[%emt 0:00:35]} 36. c4 {[%emt 0:03:35]} Kf8 {[%emt 0:00:02]} 37. Ne3 {[%emt 0:02:12]} Ke7 {[%emt 0:00:01]} 38. Nd5+ {[%emt 0:00:35]} Kd7 {[%emt 0:00:07]} 39. Ke3 {[%emt 0:01:09]} Kc6 {[%emt 0:02:31]} 40. Ke2 {[%emt 0:01:00]} Rh5 {[%emt 0:01:28]} 41. Kd3 {[%emt 0:02:07]} Kd7 {[%emt 0:00:31]} 42. Ke2 {[%emt 0:00:30]} Ke6 {[%emt 0:00:29]} 43. Ke3 {[%emt 0:00:51]} Bg5+ {[%emt 0:00:27]} 44. Kd3 {[%emt 0:00:54]} Bd8 {[%emt 0:02:27]} 45. Ke3 {[%emt 0:00:12]} Rh6 {[%emt 0:00:02]} 46. Ke2 {[%emt 0:01:47]} f5 {[%emt 0:01:56]} 47. Ne3 {[%emt 0:01:02]} f4 {[%emt 0:01:55]} 48. Nd5 {[%emt 0:00:04]} Kf7 {[%emt 0:00:31]} 49. Kf2 {[%emt 0:00:26]} Rh3 {[%emt 0:00:21]} 50. Nc3 {[%emt 0:01:27]} Bh4+ {[%emt 0:02:58]} 51. Ke2 {[%emt 0:00:02]} g5 {[%emt 0:01:35]} 52. Nd1 $2 {[%emt 0:00:13]} (52. Nd5 $11 {and White is okay.}) 52... g4 $1 $19 {[%emt 0:00:13]} 53. Rxg4 {[%emt 0:00:05]} Rxh2+ {[%emt 0:00:03]} 54. Kf1 {[%emt 0:01:06]} Bg3 {[%emt 0:00:45]} 55. Nc3 $2 {[%emt 0:00:08]} (55. Rg5 {is a better defense.}) 55... Rf2+ $19 {[%emt 0:01:31]} 56. Kg1 {[%emt 0:00:01]} Rxf3 {[%emt 0:00:11]} 57. Nd5 {[%emt 0:00:01]} Rd3 {[%emt 0:02:21]} 58. Rg5 {[%emt 0:00:33]} Rd4 {[%emt 0:00:01]} 59. Rf5+ {[%emt 0:00:07]} Kg6 {[%emt 0:00:24]} 60. Ne7+ {[%emt 0:04:38]} Kg7 {[%emt 0:00:01]} 61. c5 {[%emt 0:00:18]} dxc5 {[%emt 0:00:38]} ({Less strong is} 61... Rxb4 62. cxd6 Rxe4 63. Nd5 $17) 62. bxc5 {[%emt 0:00:01]} Rxe4 {[%emt 0:00:35]} 63. c6 {[%emt 0:00:00]} bxc6 {[%emt 0:00:34]} 64. Nxc6 {[%emt 0:00:01]} Re1+ {[%emt 0:00:42]} 65. Kg2 {[%emt 0:00:01]} e4 {[%emt 0:00:42]} 66. Ne5 {[%emt 0:00:11]} Ra1 {[%emt 0:01:57]} 67. Rf7+ {[%emt 0:00:35]} Kh6 {[%emt 0:01:35]} 68. Rf5 {[%emt 0:02:27]} Ra2+ {[%emt 0:00:02]} (68... Rxa5 $2 69. Ng4+ Kg6 70. Rxa5 $18) 69. Kg1 {[%emt 0:01:46]} f3 {[%emt 0:00:50]} (69... Rxa5 $2 {loses.} 70. Ng4+ Kg6 71. Rxa5 $18) 70. Nxf3 {[%emt 0:00:21]} exf3 {[%emt 0:00:13]} 71. Rxf3 {[%emt 0:00:06]} Be5 {[%emt 0:00:05]} 0-1

[Event "EYCC O18-ch 2024"]
[Site "Prague"]
[Date "2024.08.23"]
[Round "2.1"]
[White "Xhembulla, Aleksander"]
[Black "Piliposyan, Robert"]
[Result "1/2-1/2"]
[ECO "C58"]
[WhiteElo "2201"]
[BlackElo "2376"]
[Annotator "ChessBase"]
[PlyCount "67"]
[EventDate "2024.08.19"]
[EventType "swiss"]
[EventCountry "CZE"]
[SourceTitle "playchess.com"]
[Source "ChessBase"]
[SourceQuality "1"]
[TimeControl "5400+30"]

1. e4 {[%emt 0:00:08]} e5 {[%emt 0:00:08]} 2. Nf3 {[%emt 0:00:06]} Nc6 {[%emt 0:00:05]} 3. Bc4 {[%emt 0:00:05]} Nf6 {[%emt 0:00:05]} 4. Ng5 {[%emt 0:00:11]} d5 {[%emt 0:00:22]} 5. exd5 {[%emt 0:00:06]} Na5 {[%emt 0:00:05]} 6. Bb5+ {[%emt 0:00:05]} Bd7 {[%emt 0:05:55]} 7. Qe2 {[%emt 0:00:07]} Be7 {[%emt 0:00:03]} 8. Nf3 {[%emt 0:00:10]} Nxd5 {[%emt 0:13:50]} 9. Bxd7+ {[%emt 0:17:37]} Qxd7 {[%emt 0:00:31]} 10. Nxe5 {[%emt 0:00:11]} Qf5 {[%emt 0:13:24]} 11. O-O {[%emt 0:16:46]} O-O {[%emt 0:16:17]} 12. d4 {[%emt 0:06:07]} Bd6 {[%emt 0:13:41]} 13. Qf3 {[%emt 0:13:02]} Qe6 {[%emt 0:05:55]} 14. Nd3 {[%emt 0:03:35]} Rad8 {[%emt 0:01:08]} 15. Re1 {[%emt 0:00:55]} Qg6 {[%emt 0:00:41]} 16. Nd2 {[%emt 0:01:33]} b5 {[%emt 0:04:22]} 17. Nf1 {[%emt 0:08:36]} c6 {[%emt 0:01:00]} 18. Ne3 {[%emt 0:04:04]} Ne7 {[%emt 0:10:52]} 19. a4 {[%emt 0:01:21]} Nb3 {[%emt 0:01:05]} 20. cxb3 {[%emt 0:03:09]} Qxd3 {[%emt 0:00:33]} 21. Qd1 {[%emt 0:00:08]} Qxd1 {[%emt 0:00:38]} 22. Rxd1 {[%emt 0:00:14]} a6 {[%emt 0:00:22]} 23. Bd2 {[%emt 0:01:27]} f5 {[%emt 0:00:40]} 24. axb5 {[%emt 0:02:25]} axb5 {[%emt 0:00:03]} 25. Ra6 {[%emt 0:00:04]} f4 {[%emt 0:01:36]} 26. Nc2 {[%emt 0:00:39]} Ra8 {[%emt 0:02:26]} 27. Rda1 {[%emt 0:01:11]} Rxa6 {[%emt 0:00:03]} 28. Rxa6 {[%emt 0:00:03]} f3 {[%emt 0:01:41]} 29. Bb4 {[%emt 0:03:45]} Bxb4 {[%emt 0:01:51]} 30. Nxb4 {[%emt 0:01:32]} Rf6 {[%emt 0:00:29]} 31. gxf3 {[%emt 0:05:16]} Rxf3 {[%emt 0:00:13]} 32. Nxc6 {[%emt 0:00:06]} Nxc6 {[%emt 0:00:03]} 33. Rxc6 {[%emt 0:00:05]} Rxb3 {[%emt 0:00:03]} 34. Rc2 {[%emt 0:00:44]} 1/2-1/2

[Event "EYCC O18-ch 2024"]
[Site "Prague"]
[Date "2024.08.23"]
[Round "2.2"]
[White "Klimkowski, Jan"]
[Black "Ribera Veganzones, Serni"]
[Result "1-0"]
[ECO "B51"]
[WhiteElo "2508"]
[BlackElo "2309"]
[Annotator "TA"]
[PlyCount "85"]
[EventDate "2024.08.19"]
[EventType "swiss"]
[EventCountry "CZE"]
[SourceTitle "playchess.com"]
[Source "ChessBase"]
[SourceQuality "1"]
[TimeControl "5400+30"]

{[%evp 26,85,0,0,0,0,16,0,0,0,0,0,12,0,0,7,0,0,6,0,31,16,25,0,33,40,62,14,29,22,91,40,70,62,56,9,66,0,51,60,74,28,50,54,62,55,76,78,100,79,137,120,259,100,251,246,825,829,843,839,1359,1359]} 1. e4 {[%emt 0:00:04]} c5 {[%emt 0:00:07]} 2. Nf3 {[%emt 0:00:09]} d6 {[%emt 0:00:07]} 3. Bb5+ {[%emt 0:01:53]} Nd7 {[%emt 0:00:11]} 4. a4 {[%emt 0:01:52]} Ngf6 {[%emt 0:00:24]} 5. Nc3 {[%emt 0:00:19]} a6 {[%emt 0:00:22]} 6. Be2 {[%emt 0:00:28] B51: Sicilian: Moscow Variation (3 Bb5+) without 3...Bd7.} b6 {[%emt 0:00:24]} 7. d4 {[%emt 0:01:32]} cxd4 {[%emt 0:00:12]} 8. Qxd4 {[%emt 0:00:05]} Bb7 {[%emt 0:00:23]} 9. O-O {[%emt 0:01:11]} e6 {[%emt 0:00:19]} 10. Nd2 {[%emt 0:02:04]} d5 {[%emt 0:07:21]} 11. exd5 {[%emt 0:02:12]} Bc5 {[%emt 0:00:25]} 12. Qf4 {[%emt 0:00:19]} exd5 {[%emt 0:05:26]} 13. Nb3 {[%emt 0:02:41]} O-O {[%emt 0:02:12]} 14. Be3 $146 {[%emt 0:04:05]} ({Predecessor:} 14. Nxc5 bxc5 15. Bf3 Re8 16. b3 Ne5 17. Bb2 Qd7 18. Nd1 Nxf3+ 19. Qxf3 d4 20. Qd3 {0-1 Tulegenov,A (1858)-Shonazarov,O (2277) FIDE World Rapid Team 2024 (11.43)}) 14... Re8 {[%emt 0:03:29]} 15. Bd4 {[%emt 0:01:07]} Bf8 {[%emt 0:13:43]} 16. Rad1 {[%emt 0:03:38]} Rc8 {[%emt 0:02:10]} 17. Bd3 {[%emt 0:06:00]} g6 {[%emt 0:03:40]} 18. Rfe1 {[%emt 0:01:53]} Bg7 {[%emt 0:02:37]} 19. h3 {[%emt 0:08:28]} Rxe1+ {[%emt 0:02:16]} 20. Rxe1 {[%emt 0:00:05]} Nc5 {[%emt 0:06:02]} 21. Qe3 {[%emt 0:08:13]} Nxb3 {[%emt 0:03:46]} 22. cxb3 {[%emt 0:01:50]} Nd7 {[%emt 0:00:23]} 23. Bxg7 {[%emt 0:09:00]} Kxg7 {[%emt 0:00:03]} 24. Be2 {[%emt 0:05:55]} Qf6 {[%emt 0:08:56]} (24... Nc5 $5 25. Rd1 Nxb3 $11) 25. Rd1 {[%emt 0:01:06]} Qd6 {[%emt 0:04:45]} 26. Qd4+ {[%emt 0:04:07]} (26. Bc4 $14 Nf6 27. Bf1) 26... Nf6 {[%emt 0:00:42]} 27. Bf3 {[%emt 0:04:07]} Kg8 {[%emt 0:06:58]} (27... Qc5 $11 {keeps the balance.}) 28. g3 {[%emt 0:02:50]} (28. Bxd5 $6 Nxd5 (28... Rd8 $2 29. Bxf7+ Kxf7 30. Qxd6 $18) 29. Nxd5 Bxd5 30. Qxd5 Qxd5 31. Rxd5 Rc1+ 32. Kh2 Rc2 $11) ({White should try} 28. g4 $16) 28... Rd8 {[%emt 0:03:55]} 29. Kg2 {[%emt 0:00:38]} h5 {[%emt 0:01:30]} 30. Re1 {[%emt 0:02:16]} (30. b4 $14 {was preferrable.}) 30... Kf8 {[%emt 0:05:54]} ({Black should play} 30... Ne4 $11) 31. Rd1 {[%emt 0:01:43]} (31. b4 $14) 31... Re8 {[%emt 0:00:54]} (31... Kg8 $1 $11) 32. b4 $14 {[%emt 0:01:30]} (32. Bxd5 $2 Nxd5 (32... Rd8 $2 33. Bxb7 Qxd4 34. Rxd4 $19) 33. Kh2 (33. Nxd5 $2 Re5 $19) 33... Qe5 (33... Re5 $2 34. f4 $19) 34. Nxd5 Qxd4 35. Rxd4 Rd8 $19) (32. Nxd5 $2 Bxd5 (32... Rd8 $2 33. Kh2 $19) 33. Bxd5 Rd8 $19) 32... Rc8 {[%emt 0:04:01]} 33. a5 {[%emt 0:01:34]} (33. Bxd5 $2 Bxd5+ (33... Rd8 $2 34. Bxb7 Qxd4 35. Rxd4 $19) 34. Kh2 (34. Nxd5 $2 Rd8 $19) 34... Rd8 $19) (33. h4 $16) 33... b5 {[%emt 0:01:42]} (33... Rc4 $2 34. Qxc4 (34. Qxb6 Qxb6 35. axb6 Rxb4 $11) 34... bxa5 35. Qc5 $18 (35. Bxd5 Nxd5 36. Nxd5 Qxb4 $18) (35. Nxd5 Bxd5 36. Bxd5 Qxb4 $18) (35. bxa5 Qd7 $18)) 34. b3 {[%emt 0:00:37]} (34. Nxd5 $2 Bxd5 35. Bxd5 Rd8 $19) 34... Kg8 {[%emt 0:00:48]} 35. Ne2 {[%emt 0:00:12]} (35. Nxd5 $2 Nxd5 (35... Bxd5 36. Bxd5 Qxd5+ 37. Qxd5 $11) 36. Bxd5 Rd8 37. Bxb7 Qxd4 38. Rxd4 Rxd4 39. Bxa6 Rxb4 $19) 35... Rc7 {[%emt 0:05:21]} 36. Nf4 {[%emt 0:00:27]} Bc8 {[%emt 0:02:27]} 37. Nd3 {[%emt 0:03:01]} (37. Bxd5 $6 Nxd5 38. Nxd5 Bb7 $11) 37... Bf5 {[%emt 0:00:33]} (37... Re7 $142) 38. Nc5 $16 {[%emt 0:01:40]} Re7 {[%emt 0:00:47] [#]} (38... Be6 $16 39. g4 (39. Qxf6 $2 {loses.} Bxh3+ 40. Kxh3 Qxf6 $19) 39... Nd7) 39. Qf4 $2 {[%emt 0:05:06]} ({Worse is} 39. Bxd5 Qxd5+ 40. Qxd5 Nxd5 41. Rxd5 Be4+ 42. Nxe4 Rxe4 $15) (39. g4 $1 $18 {[%cal Rg4f5] and the rest is easy.} Bc8 40. Bxd5) 39... Qc6 $2 {[%emt 0:01:36]} (39... Qxf4 $16 {was called for.} 40. gxf4 Bc8) 40. Rc1 $18 {[%emt 0:03:23]} Rc7 $2 {[%emt 0:02:03]} (40... Kg7 41. g4 Bd7 42. gxh5 Bf5) 41. g4 $18 {[%emt 0:01:32]} hxg4 {[%emt 0:00:17]} 42. hxg4 {[%emt 0:00:02]} Be4 {[%emt 0:00:44]} 43. Nxe4 {[%emt 0:00:28]} 1-0